bitfinex-derivatives/quotes_SOLF0:USTF0_20240925
["timestamp","ask_amount","ask_price","bid_price","bid_amount"]
[1727248103486,3.3376,149.8,149.78,10.25]
[1727248104083,3.3374,149.81,149.78,10.25]
[1727248104487,3.3374,149.81,149.77,4.7401]
[1727248104681,3.3374,149.81,149.78,10.25]
[1727248105191,10.25,149.82,149.76,11.6156]
[1727248106177,10.25,149.79,149.75,1.318]
[1727248106378,10.25,149.77,149.68,23.44795681]
[1727248106688,10.25,149.77,149.72,10.25]
[1727248107282,3.3389,149.75,149.72,10.25]
[1727248108581,3.3389,149.75,149.73,10.25]
[1727248110087,3.3389,149.75,149.71,3.3395]
[1727248110288,3.3389,149.75,149.73,10.25]
[1727248110485,3.3389,149.74,149.73,10.25]
[1727248112583,3.3389,149.74,149.72,10.25]
[1727248112787,3.3387,149.75,149.73,10.25]
[1727248115089,3.3385,149.76,149.73,10.25]
[1727248115483,10.25,149.8,149.74,10.25]
[1727248115689,3.3383,149.77,149.74,10.25]
[1727248116787,3.3383,149.77,149.76,10.25]
[1727248117590,1.4894,149.84,149.76,10.25]
[1727248117792,10.25,149.82,149.77,10.25]
[1727248118493,3.338,149.79,149.77,10.25]
[1727248118994,3.338,149.79,149.76,10.25]
[1727248122395,3.338,149.78,149.76,10.25]
[1727248126395,3.338,149.78,149.74,3.3388]
[1727248126396,3.3382,149.77,149.73,3.3391]
[1727248126595,3.3382,149.77,149.74,10.25]
[1727248127394,3.3385,149.76,149.74,10.25]
[1727248127592,10.25,149.8,149.74,10.25]
[1727248128904,3.3383,149.77,149.74,10.25]
[1727248131699,3.3383,149.77,149.73,4.7444]
[1727248131893,10.25,149.76,149.73,1.4053]
[1727248132599,3.3388,149.75,149.73,1.4053]
[1727248138003,3.3385,149.76,149.73,4.7444]
[1727248138604,3.3385,149.76,149.73,14.9944]
[1727248138807,1.4894,149.84,149.74,13.5889]
[1727248139013,10.25,149.81,149.76,10.25]
[1727248139512,3.3379,149.79,149.76,10.25]
[1727248139708,1.3347,149.84,149.77,10.25]
[1727248139906,10.25,149.83,149.77,10.25]
[1727248140102,1.3347,149.84,149.77,13.5882]
[1727248140307,10.25,149.83,149.77,10.25]
[1727248140711,3.337,149.83,149.8,10.25]
[1727248143614,3.3367,149.84,149.82,10.25]
[1727248144115,10.25,149.87,149.82,10.25]
[1727248144515,97.80545642,149.88,149.83,10.25]
[1727248144816,1.3699,149.97,149.77,22.01482954]
[1727248145016,10.25,149.9,149.85,10.25]
[1727248145210,10.25,149.87,149.82,13.5871]
[1727248146213,3.3363,149.86,149.82,13.5871]
[1727248146410,10.25,149.87,149.82,10.25]
[1727248146614,10.25,149.86,149.81,10.25]
[1727248147017,3.3366,149.85,149.81,10.25]
[1727248147717,3.3366,149.85,149.82,10.25]
[1727248150024,3.3366,149.85,149.81,3.3373]
[1727248150025,10.25,149.87,149.81,10.25]
[1727248151122,3.3366,149.85,149.81,10.25]
[1727248153027,3.3367,149.84,149.81,10.25]
[1727248154323,10.25,149.87,149.82,10.25]
[1727248154324,3.3366,149.85,149.82,10.25]
[1727248156733,3.3363,149.86,149.82,10.25]
[1727248159230,10.25,149.87,149.8,6.06]
[1727248159435,10.25,149.87,149.8,16.31]
[1727248160132,3.3368,149.84,149.8,16.31]
[1727248160329,10.25,149.87,149.8,12.9725]
[1727248161734,10.25,149.86,149.8,12.9725]
[1727248161934,3.337,149.83,149.8,12.9725]
[1727248163728,10.25,149.86,149.79,1.3521]
[1727248163928,10.25,149.84,149.79,1.3521]
[1727248164638,3.3373,149.82,149.79,1.3521]
[1727248165039,10.25,149.84,149.79,1.3521]
[1727248165638,3.3373,149.81,149.79,1.3521]
[1727248173844,3.3372,149.82,149.79,1.3521]
[1727248174149,10.25,149.86,149.79,14.9399]
[1727248174743,3.337,149.83,149.79,14.9399]
[1727248175342,3.3367,149.84,149.8,3.3375]
[1727248175545,3.3367,149.84,149.81,10.25]
[1727248176955,3.3365,149.85,149.81,13.5873]
[1727248178051,3.3369,149.83,149.8,3.3375]
[1727248178249,2.8682,149.91,149.8,13.5875]
[1727248178453,10.25,149.86,149.8,13.5875]
[1727248179054,3.3369,149.84,149.8,13.5875]
[1727248179648,3.3369,149.84,149.81,3.3373]
[1727248180660,3.3369,149.84,149.8,13.5875]
[1727248181868,3.3369,149.84,149.81,3.3373]
[1727248183355,3.3369,149.84,149.8,13.5875]
[1727248183660,10.25,149.86,149.82,10.25]
[1727248183661,3.3363,149.86,149.82,10.25]
[1727248183860,3.3363,149.86,149.84,10.25]
[1727248189268,3.3363,149.86,149.83,13.5868]
[1727248189567,3.3363,149.86,149.83,10.25]
[1727248189766,3.3363,149.86,149.82,3.337]
[1727248190068,3.3365,149.85,149.83,10.25]
[1727248191567,3.3365,149.85,149.82,10.25]
[1727248191765,3.3367,149.84,149.82,10.25]
[1727248191969,10.25,149.86,149.8,10.25]
[1727248192870,3.337,149.83,149.8,10.25]
[1727248193767,3.337,149.83,149.79,4.6897]
[1727248193967,3.337,149.83,149.8,10.25]
[1727248194365,3.337,149.83,149.81,10.25]
[1727248195773,2.7137,149.91,149.82,10.25]
[1727248195973,10.25,149.88,149.82,10.25]
[1727248196470,3.3368,149.84,149.82,10.25]
[1727248196665,3.3368,149.84,149.81,10.25]
[1727248203276,3.3368,149.84,149.81,13.5873]
[1727248203667,0.1546,149.94,149.79,1.3521]
[1727248203668,0.1546,149.94,149.83,10.25]
[1727248203867,0.1546,149.94,149.87,10.25]
[1727248203868,11.28098895,149.93,149.87,10.25]
[1727248204082,10.25,149.93,149.87,10.25]
[1727248204587,3.3355,149.9,149.87,10.25]
[1727248206679,10.25,149.88,149.77,10.7296944]
[1727248206877,10.25,149.87,149.8,10.25]
[1727248207674,10.25,149.87,149.78,2.6652]
[1727248207875,32.34524271,149.93,149.72,80.1]
[1727248207876,10.25,149.8,149.72,80.1]
[1727248208075,10.25,149.8,149.73,22.06025462]
[1727248208374,3.3385,149.76,149.73,10.25]
[1727248208580,10.25,149.79,149.73,10.25]
[1727248208780,1.3416,149.85,149.76,10.25]
[1727248209082,10.25,149.83,149.78,10.25]
[1727248209775,3.3377,149.8,149.78,10.25]
[1727248210572,10.25,149.81,149.76,10.25]
[1727248210777,10.25,149.8,149.75,10.25]
[1727248211678,3.3383,149.77,149.74,10.25]
[1727248212272,3.3381,149.78,149.75,10.25]
[1727248218185,3.3382,149.77,149.74,10.25]
[1727248218386,10.25,149.8,149.74,10.25]
[1727248218582,10.25,149.79,149.74,10.25]
[1727248219689,3.3384,149.77,149.74,10.25]
[1727248222891,3.3385,149.76,149.74,10.25]
[1727248231795,10.25,149.78,149.72,1.3248]
[1727248232099,10.25,149.75,149.71,1.3197]
[1727248232600,3.3389,149.74,149.71,1.3197]
[1727248233997,3.3387,149.75,149.72,10.25]
[1727248235703,3.339,149.74,149.72,10.25]
[1727248236502,3.339,149.74,149.71,1.3197]
[1727248237592,3.3388,149.75,149.72,10.25]
[1727248238301,3.3389,149.74,149.7,3.3397]
[1727248238494,3.3389,149.74,149.71,10.25]
[1727248240107,3.3387,149.75,149.71,13.5896]
[1727248241004,3.3385,149.76,149.72,13.5893]
[1727248241299,97.82058944,149.82,149.74,10.25]
[1727248241502,10.25,149.79,149.74,10.25]
[1727248241801,97.82058944,149.82,149.75,10.25]
[1727248242007,10.25,149.8,149.75,10.25]
[1727248242400,3.3381,149.78,149.75,10.25]
[1727248243305,97.82058944,149.82,149.75,10.25]
[1727248243306,3.3382,149.77,149.75,10.25]
[1727248243507,3.3382,149.77,149.74,10.25]
[1727248245997,3.3382,149.77,149.73,3.3391]
[1727248246204,10.25,149.77,149.72,10.25]
[1727248246603,3.3386,149.76,149.72,10.25]
[1727248251105,3.3386,149.76,149.73,10.25]
[1727248252112,3.3383,149.77,149.73,13.589]
[1727248252306,97.82058944,149.82,149.75,10.25]
[1727248252500,10.25,149.8,149.75,10.25]
[1727248253611,10.25,149.79,149.74,10.25]
[1727248253811,10.25,149.78,149.73,10.25]
[1727248254611,3.3386,149.76,149.73,10.25]
[1727248255011,97.82058944,149.82,149.74,10.25]
[1727248255210,3.3383,149.77,149.74,10.25]
[1727248256906,10.25,149.8,149.74,10.25]
[1727248257114,3.3385,149.76,149.72,3.3393]
[1727248257307,10.25,149.75,149.69,1.3685]
[1727248257513,10.25,149.75,149.69,11.6185]
[1727248257812,10.25,149.75,149.7,10.25]
[1727248258013,10.25,149.76,149.7,10.25]
[1727248258208,3.3388,149.75,149.7,13.5898]
[1727248258412,10.25,149.76,149.7,13.5898]
[1727248258710,10.25,149.76,149.7,10.25]
[1727248259105,3.3391,149.74,149.7,10.25]
[1727248261509,3.3391,149.74,149.72,10.25]
[1727248262816,3.3391,149.73,149.69,1.3685]
[1727248263216,3.3391,149.73,149.69,11.6185]
[1727248263915,3.3394,149.72,149.69,11.6185]
[1727248264825,3.3396,149.71,149.69,1.3685]
[1727248265010,2.6851,149.8,149.69,1.3685]
[1727248265011,10.25,149.72,149.69,1.3685]
[1727248266525,3.3397,149.71,149.69,1.3685]
[1727248268418,10.25,149.71,149.62,10.71050035]
[1727248268615,10.25,149.69,149.64,10.25]
[1727248269416,3.3405,149.67,149.64,10.25]
[1727248269819,10.25,149.69,149.64,10.25]
[1727248270722,3.3406,149.67,149.64,10.25]
[1727248271117,10.25,149.71,149.65,10.25]
[1727248271726,10.25,149.7,149.62,10.73435187]
[1727248272024,10.25,149.7,149.64,10.25]
[1727248272217,3.3406,149.67,149.64,10.25]
[1727248273021,3.3408,149.66,149.62,6.031]
[1727248273224,10.25,149.67,149.62,6.69514749]
[1727248273422,10.25,149.67,149.56,2.6703]
[1727248273423,10.25,149.64,149.57,6.69383835]
[1727248273621,10.25,149.64,149.58,10.25]
[1727248273820,3.3417,149.62,149.58,10.25]
[1727248274217,3.3417,149.62,149.57,3.3425]
[1727248274419,10.25,149.62,149.56,13.38849296]
[1727248274622,10.25,149.62,149.57,10.25]
[1727248275123,3.3422,149.6,149.56,1.3358]
[1727248275324,3.3422,149.6,149.56,11.5858]
[1727248276027,3.3423,149.59,149.56,11.5858]
[1727248276231,10.25,149.61,149.54,1.3268]
[1727248276425,3.3431,149.56,149.5,1.302]
[1727248276732,10.25,149.58,149.53,10.25]
[1727248277230,3.3429,149.57,149.53,10.25]
[1727248277523,10.25,149.58,149.53,10.25]
[1727248277925,10.25,149.58,149.5,1.302]
[1727248278125,10.25,149.58,149.54,10.25]
[1727248278324,10.25,149.58,149.52,3.3438]
[1727248278325,3.3429,149.57,149.52,3.3438]
[1727248278530,3.3429,149.57,149.53,10.25]
[1727248279731,3.3429,149.56,149.53,10.25]
[1727248279928,10.25,149.6,149.54,10.25]
[1727248280631,2.7217,149.62,149.56,10.25]
[1727248280823,10.25,149.61,149.56,10.25]
[1727248281020,3.3421,149.6,149.56,10.25]
[1727248282234,3.3421,149.6,149.56,13.5928]
[1727248283227,3.3423,149.59,149.56,10.25]
[1727248284125,3.3423,149.59,149.56,13.5929]
[1727248285142,3.3423,149.59,149.56,10.25]
[1727248286542,10.25,149.61,149.56,10.25]
[1727248286843,1.3626,149.62,149.56,10.25]
[1727248287041,10.25,149.61,149.56,10.25]
[1727248287544,3.3423,149.59,149.56,10.25]
[1727248290048,3.3423,149.59,149.56,13.5929]
[1727248290445,3.3423,149.59,149.56,3.3429]
[1727248290656,3.3423,149.59,149.57,10.25]
[1727248291545,10.25,149.59,149.49,63.7161385]
[1727248291751,10.25,149.58,149.52,10.25]
[1727248292653,3.3436,149.54,149.52,10.25]
[1727248293352,10.25,149.56,149.5,11.5713]
[1727248294452,3.3437,149.53,149.5,11.5713]
[1727248295255,3.3438,149.52,149.5,11.5713]
[1727248295451,10.25,149.56,149.5,11.5713]
[1727248295660,3.3436,149.53,149.5,14.9155]
[1727248296053,10.25,149.56,149.51,10.25]
[1727248296254,117.98062947,149.64,149.51,10.25]
[1727248296255,3.3434,149.54,149.51,10.25]
[1727248297056,3.3436,149.53,149.51,10.25]
[1727248297652,10.25,149.56,149.5,11.5713]
[1727248298153,3.3438,149.53,149.5,11.5713]
[1727248299053,10.25,149.56,149.5,11.5713]
[1727248299849,3.3437,149.53,149.5,11.5713]
[1727248300254,3.3437,149.53,149.5,1.3213]
[1727248300454,3.3437,149.53,149.5,11.5713]
[1727248300655,10.25,149.54,149.5,11.5713]
[1727248301256,10.25,149.55,149.5,11.5713]
[1727248301451,104.62312947,149.64,149.5,11.5713]
[1727248301652,10.25,149.56,149.5,11.5713]
[1727248302058,3.3437,149.53,149.5,11.5713]
[1727248305159,3.3439,149.52,149.5,11.5713]
[1727248308768,3.344,149.51,149.5,11.5713]
[1727248310367,3.344,149.51,149.5,1.3213]
[1727248313663,3.3438,149.52,149.5,1.3213]
[1727248315981,3.3436,149.53,149.5,14.9155]
[1727248316670,3.3436,149.53,149.5,11.5713]
[1727248318476,3.3436,149.53,149.5,14.9155]
[1727248318672,104.62312947,149.64,149.52,10.25]
[1727248318971,10.25,149.59,149.52,10.25]
[1727248319177,3.3431,149.56,149.52,13.5937]
[1727248319876,3.3432,149.55,149.52,10.25]
[1727248320278,3.3433,149.55,149.52,10.25]
[1727248320479,10.25,149.56,149.51,10.25]
[1727248321380,3.3432,149.55,149.51,13.594]
[1727248323176,3.3435,149.54,149.5,14.9155]
[1727248325180,3.3435,149.54,149.52,10.25]
[1727248325972,3.3432,149.55,149.52,10.25]
[1727248326283,10.25,149.58,149.52,10.25]
[1727248327181,10.25,149.57,149.52,10.25]
[1727248327585,3.3433,149.55,149.52,10.25]
[1727248328085,10.25,149.57,149.52,10.25]
[1727248328784,3.3434,149.54,149.52,10.25]
[1727248329679,3.3434,149.54,149.5,14.9155]
[1727248330475,3.3433,149.55,149.52,10.25]
[1727248331079,3.3431,149.56,149.52,13.5938]
[1727248332989,10.25,149.57,149.5,1.3213]
[1727248332990,3.3428,149.57,149.53,13.5936]
[1727248333189,97.94062947,149.64,149.56,10.25]
[1727248333490,97.94062947,149.64,149.57,10.25]
[1727248333491,3.3423,149.59,149.57,10.25]
[1727248334387,3.3423,149.59,149.55,10.25]
[1727248335288,3.3423,149.59,149.55,13.5931]
[1727248335884,3.3425,149.58,149.55,13.5931]
[1727248336085,10.25,149.59,149.5,1.3213]
[1727248336280,10.25,149.58,149.5,1.3213]
[1727248336485,3.3431,149.56,149.5,1.3213]
[1727248336685,3.3431,149.56,149.53,10.25]
[1727248337990,3.3432,149.55,149.53,10.25]
[1727248338690,97.94062947,149.64,149.53,10.25]
[1727248338691,3.343,149.56,149.53,10.25]
[1727248340179,3.3428,149.57,149.54,10.25]
[1727248340383,10.25,149.58,149.54,10.25]
[1727248341089,3.3429,149.57,149.54,10.25]
[1727248341284,97.94062947,149.64,149.56,10.25]
[1727248341495,3.3419,149.61,149.59,10.25]
[1727248341794,108.19062947,149.64,149.59,10.25]
[1727248341995,108.19062947,149.64,149.57,3.3427]
[1727248341996,10.25,149.63,149.57,13.5927]
[1727248342490,10.25,149.61,149.56,14.8777]
[1727248342694,10.25,149.61,149.56,11.5348]
[1727248342891,3.3424,149.59,149.56,11.5348]
[1727248344094,3.3425,149.58,149.56,11.5348]
[1727248344395,3.3425,149.58,149.56,1.2848]
[1727248344789,3.3425,149.58,149.54,4.6909]
[1727248344790,10.25,149.6,149.54,1.3477]
[1727248345394,3.3428,149.57,149.54,1.3477]
[1727248346097,3.3425,149.58,149.55,10.25]
[1727248347488,3.3428,149.57,149.54,11.5977]
[1727248348896,3.3429,149.56,149.54,10.25]
[1727248349097,3.3429,149.56,149.52,13.5938]
[1727248351501,3.3429,149.56,149.54,10.25]
[1727248352201,10.25,149.59,149.53,10.25]
[1727248352394,10.25,149.57,149.53,10.25]
[1727248352893,3.3434,149.54,149.51,10.25]
[1727248359405,3.3434,149.54,149.52,10.25]
[1727248360193,1.3675,149.61,149.52,10.25]
[1727248360398,10.25,149.58,149.52,10.25]
[1727248361805,3.3432,149.55,149.52,10.25]
[1727248365496,3.3432,149.55,149.51,3.344]
[1727248365497,1.3675,149.61,149.54,10.25]
[1727248365708,10.25,149.61,149.55,10.25]
[1727248366104,3.3428,149.57,149.55,10.25]
[1727248366406,10.25,149.61,149.55,10.25]
[1727248366606,3.3425,149.58,149.55,10.25]
[1727248370007,10.25,149.59,149.54,10.25]
[1727248370200,10.25,149.59,149.52,1.3459]
[1727248370402,3.3431,149.56,149.53,10.25]
[1727248370601,10.25,149.59,149.53,10.25]
[1727248371313,3.3431,149.56,149.53,10.25]
[1727248372003,3.3432,149.55,149.53,10.25]
[1727248373099,10.25,149.63,149.54,10.25]
[1727248373305,10.25,149.63,149.57,10.25]
[1727248373809,3.3424,149.59,149.57,10.25]
[1727248374199,10.25,149.61,149.56,10.25]
[1727248374498,10.25,149.6,149.56,10.25]
[1727248375609,10.25,149.6,149.54,10.25]
[1727248375809,10.25,149.59,149.54,10.25]
[1727248376313,3.343,149.56,149.54,10.25]
[1727248377205,3.3428,149.57,149.54,10.25]
[1727248377507,10.25,149.61,149.56,10.25]
[1727248378008,3.3426,149.58,149.56,10.25]
[1727248378205,10.25,149.61,149.55,10.25]
[1727248378605,3.3429,149.57,149.55,10.25]
[1727248379107,3.3429,149.57,149.54,10.25]
[1727248380106,3.343,149.56,149.54,10.25]
[1727248380607,10.25,149.58,149.52,1.3459]
[1727248381407,3.3433,149.55,149.52,1.3459]
[1727248382408,3.343,149.56,149.53,10.25]
[1727248382614,3.343,149.56,149.54,10.25]
[1727248382803,3.343,149.56,149.52,4.6897]
[1727248382804,10.25,149.58,149.52,1.3459]
[1727248383010,2.674,149.61,149.52,1.3459]
[1727248383011,10.25,149.56,149.52,1.3459]
[1727248383504,3.3435,149.54,149.52,1.3459]
[1727248383910,3.3435,149.54,149.51,10.25]
[1727248384115,3.3436,149.53,149.51,10.25]
[1727248384513,2.674,149.61,149.45,1.4059]
[1727248384712,3.3441,149.51,149.48,10.25]
[1727248385518,10.25,149.53,149.45,1.4059]
[1727248385719,10.25,149.52,149.47,10.25]
[1727248386319,3.3441,149.51,149.48,17.49219343]
[1727248386505,3.3441,149.51,149.49,6.7277667]
[1727248386711,3.3441,149.51,149.47,10.25]
[1727248386916,3.3441,149.51,149.48,27.74144595]
[1727248387215,3.3441,149.51,149.49,6.72747921]
[1727248387516,3.3441,149.51,149.48,10.25]
[1727248390014,3.3438,149.53,149.48,13.5946]
[1727248390218,10.25,149.54,149.49,10.25]
[1727248390511,10.25,149.54,149.46,10.75845096]
[1727248390715,10.25,149.54,149.48,10.25]
[1727248391312,3.344,149.52,149.48,13.5946]
[1727248392419,10.25,149.57,149.51,10.25]
[1727248392621,10.25,149.57,149.52,10.25]
[1727248392923,3.3433,149.55,149.52,10.25]
[1727248393308,10.25,149.58,149.52,10.25]
[1727248393509,2.674,149.61,149.51,10.25]
[1727248393510,10.25,149.57,149.51,10.25]
[1727248393912,3.3436,149.53,149.51,10.25]
[1727248394615,3.3438,149.52,149.5,11.5696]
[1727248396120,3.344,149.51,149.5,1.3196]
[1727248396322,10.25,149.53,149.47,10.25]
[1727248398115,3.3444,149.5,149.47,10.25]
[1727248398424,10.25,149.52,149.47,10.25]
[1727248399524,3.3446,149.49,149.47,10.25]
[1727248399716,3.3446,149.49,149.44,4.1156]
[1727248399914,3.3446,149.49,149.47,10.25]
[1727248404731,3.3446,149.49,149.48,10.25]
[1727248408328,3.3443,149.5,149.48,10.25]
[1727248411246,3.3445,149.49,149.48,10.25]
[1727248411441,10.25,149.54,149.48,10.25]
[1727248412547,3.3442,149.51,149.48,10.25]
[1727248413541,3.3443,149.5,149.48,10.25]
[1727248413837,10.25,149.53,149.48,10.25]
[1727248414045,10.25,149.53,149.47,10.25]
[1727248414847,10.25,149.53,149.46,3.3451]
[1727248415149,10.25,149.53,149.46,10.25]
[1727248417049,3.3446,149.49,149.46,10.25]
[1727248417647,3.3446,149.49,149.46,3.3451]
[1727248417856,3.3446,149.49,149.47,10.25]
[1727248419554,10.25,149.51,149.44,7.4612]
[1727248419760,10.25,149.48,149.44,1.3904]
[1727248420446,3.345,149.47,149.44,1.3904]
[1727248420850,10.25,149.48,149.44,1.3904]
[1727248421151,3.3452,149.46,149.44,1.3904]
[1727248423551,10.25,149.47,149.44,1.3904]
[1727248424451,3.3453,149.46,149.44,1.3904]
[1727248424652,97.9934471,149.55,149.45,10.25]
[1727248424852,10.25,149.51,149.46,10.25]
[1727248425047,3.3449,149.48,149.44,1.3904]
[1727248425252,3.3449,149.48,149.44,4.7359]
[1727248425552,3.3449,149.48,149.46,10.25]
[1727248425947,3.3449,149.47,149.46,10.25]
[1727248426153,97.9934471,149.55,149.46,10.25]
[1727248426353,10.25,149.51,149.46,10.25]
[1727248426556,3.3446,149.49,149.46,10.25]
[1727248427449,3.3448,149.48,149.46,10.25]
[1727248428255,3.3447,149.49,149.46,13.5951]
[1727248428451,3.3447,149.49,149.46,10.25]
[1727248429756,3.3447,149.49,149.46,13.595]
[1727248429961,3.3447,149.49,149.48,10.25]
[1727248430362,3.3448,149.48,149.45,3.3453]
[1727248430557,3.3448,149.48,149.46,10.25]
[1727248431462,3.3445,149.5,149.46,13.5951]
[1727248431958,3.3453,149.46,149.41,3.3461]
[1727248432158,10.25,149.48,149.42,11.31987846]
[1727248432459,3.3454,149.46,149.42,10.25]
[1727248432859,10.25,149.48,149.42,10.25]
[1727248433464,3.3453,149.46,149.42,10.25]
[1727248433651,3.3453,149.46,149.43,10.25]
[1727248434560,3.3454,149.45,149.43,10.25]
[1727248436759,3.3454,149.45,149.42,10.25]
[1727248440968,10.25,149.48,149.44,10.25]
[1727248441661,97.9934471,149.55,149.39,2.6885]
[1727248441662,97.9934471,149.55,149.46,10.25]
[1727248441859,97.9934471,149.55,149.49,10.25]
[1727248442054,10.25,149.52,149.48,10.25]
[1727248442660,97.9934471,149.55,149.48,10.25]
[1727248442864,10.25,149.53,149.49,10.25]
[1727248443262,3.344,149.52,149.49,10.25]
[1727248444066,3.3441,149.51,149.49,10.25]
[1727248445669,3.3439,149.52,149.49,10.25]
[1727248446466,3.3439,149.52,149.49,13.5944]
[1727248447464,3.3441,149.51,149.48,3.3447]
[1727248447666,3.3441,149.51,149.49,10.25]
[1727248450261,3.344,149.52,149.49,10.25]
[1727248452564,3.344,149.52,149.5,10.25]
[1727248454575,3.344,149.51,149.5,10.25]
[1727248455480,108.2434471,149.55,149.5,10.25]
[1727248456673,3.3436,149.53,149.51,10.25]
[1727248457876,3.3438,149.52,149.51,10.25]
[1727248458079,10.25,149.53,149.47,10.25]
[1727248458280,10.25,149.53,149.48,6.72431736]
[1727248458476,3.3442,149.51,149.47,13.5947]
[1727248458684,3.3442,149.51,149.44,3.9898]
[1727248458685,10.25,149.51,149.48,6.72422756]
[1727248458883,10.25,149.51,149.46,10.25]
[1727248459081,10.25,149.51,149.47,6.72424608]
[1727248459277,10.25,149.51,149.48,6.72424608]
[1727248459476,10.25,149.51,149.46,10.25]
[1727248459678,10.25,149.51,149.47,6.72426969]
[1727248459882,3.3446,149.49,149.48,6.72426969]
[1727248460779,3.3444,149.5,149.48,6.72426969]
[1727248460977,10.25,149.54,149.49,10.25]
[1727248461374,3.344,149.52,149.49,10.25]
[1727248461580,108.2434471,149.55,149.51,10.25]
[1727248462281,3.3438,149.53,149.51,10.25]
[1727248462474,108.2434471,149.55,149.51,10.25]
[1727248462673,108.2434471,149.55,149.49,10.25]
[1727248463283,108.2434471,149.55,149.49,13.5944]
[1727248463486,10.25,149.54,149.45,15.38145975]
[1727248463679,10.25,149.54,149.47,10.25]
[1727248463880,3.3442,149.51,149.48,6.72511637]
[1727248464183,10.25,149.54,149.47,13.5949]
[1727248464378,10.25,149.54,149.48,6.7257417]
[1727248464578,10.25,149.54,149.47,13.5949]
[1727248464780,10.25,149.54,149.48,6.72574721]
[1727248464980,10.25,149.54,149.47,13.5949]
[1727248465177,3.3443,149.51,149.47,13.5949]
[1727248465484,3.3443,149.51,149.48,6.73945429]
[1727248465684,10.25,149.54,149.47,13.5949]
[1727248465985,10.25,149.54,149.48,6.74007219]
[1727248466186,10.25,149.54,149.47,13.5949]
[1727248466484,10.25,149.54,149.48,6.74002117]
[1727248466682,10.25,149.54,149.47,13.5949]
[1727248466878,3.3443,149.5,149.48,6.74002117]
[1727248467181,3.3443,149.5,149.47,13.5949]
[1727248467381,3.3443,149.5,149.48,6.7400933]
[1727248467579,3.3443,149.5,149.47,13.5949]
[1727248467882,3.3443,149.5,149.48,6.73998247]
[1727248468083,3.3443,149.5,149.47,13.5949]
[1727248468283,3.3443,149.5,149.48,6.74005837]
[1727248468581,3.3443,149.5,149.47,13.5949]
[1727248468780,3.3443,149.5,149.48,6.73993492]
[1727248468980,3.3443,149.5,149.47,13.5949]
[1727248469183,3.3445,149.49,149.48,6.73993492]
[1727248469380,3.3445,149.49,149.46,13.5951]
[1727248469580,3.3445,149.49,149.47,6.739932]
[1727248469780,3.3445,149.49,149.46,13.5951]
[1727248469980,3.3445,149.49,149.47,6.73993201]
[1727248470186,3.3445,149.49,149.46,13.5951]